Cogmind - Beta 13 @@@ ROGUE MODE // 2024.05.14 @ 17:42:49 Player: mEkbOk Result: Destroyed by as-58528 with Assembled Heavy Rifle Performance ------------- Evolutions (0) 0 Regions Visited (4) 800 Robots Destroyed (17) 85 Value Destroyed (457) 457 Prototype IDs (0) 0 Alien Tech Used (0) 0 Bonus (25) 25 TOTAL SCORE: 1367 Bonus ------- Follower Combat Kills 25 Cogmind --------- Core Integrity 0/250 Matter 225/300 Energy 250/250 System Corruption 0% Temperature Cool (20) Movement Treading (160) Location -9/Mines Parts ------- > --- POWER (1) -------- Ion Engine > --- PROPULSION (2) --- Light Treads Light Treads > --- UTILITY (2) ------ Machine Analyzer Recalibrator > --- WEAPON (2) ------- Grenade Launcher Grenade Launcher > --- INVENTORY (5) ---- Small Matter Pod (50) Seismic Detector Beamcaster Heavy Battle Rifle Datajack Peak State ------------ > --- POWER ------------ Ion Engine > --- PROPULSION ------- Light Treads Light Treads > --- UTILITY ---------- Machine Analyzer Recalibrator > --- WEAPON ----------- Beamcaster Heavy Battle Rifle > --- INVENTORY -------- Small Matter Pod Beam Rifle Grenade Launcher Grenade Launcher Datajack [Rating: 19] Favorites ----------- Power Ion Engine Engine Ion Engine Propulsion Light Treads Treads Light Treads Leg Aluminum Leg Wheel Wheel Hover Unit Hover Unit Utility Machine Analyzer Device Recalibrator Storage Small Matter Pod Processor Machine Analyzer Weapon Assault Rifle Energy Gun Small Laser Ballistic Gun Assault Rifle Launcher Grenade Launcher Special Melee Weapon Datajack Build | -11 -10 -10 -10 -9 ------- Run | Yrd Mat Min Exi Min Slots Evolved . | . . . . . Power . | . . . . . Propulsion . | . . . . . Utility . | . . . . . Weapon . | . . . . . Parts Attached 36 | 5 22 5 . 4 Power 4 | 1 2 1 . . Engine 4 | 1 2 1 . . Core . | . . . . . Reactor . | . . . . . Propulsion 7 | 2 5 . . . Treads 2 | . 2 . . . Leg 2 | . 2 . . . Wheel 2 | 2 . . . . Hover 1 | . 1 . . . Flight . | . . . . . Utility 10 | . 9 1 . . Device 5 | . 4 1 . . Storage 2 | . 2 . . . Processor 3 | . 3 . . . Hackware . | . . . . . Protection . | . . . . . Artifact . | . . . . . Weapon 15 | 2 6 3 . 4 Energy Gun 6 | 1 2 2 . 1 Energy Cannon . | . . . . . Ballistic Gun 4 | 1 2 1 . . Ballistic Cannon . | . . . . . Launcher 4 | . 2 . . 2 Special Weapon . | . . . . . Impact Weapon . | . . . . . Slashing Weapon . | . . . . . Piercing Weapon . | . . . . . Special Melee Weapon 1 | . . . . 1 Unidentified Prototypes . | . . . . . Parts Lost 3 | . 3 . . . Power . | . . . . . Propulsion 2 | . 2 . . . Utility . | . . . . . Weapon 1 | . 1 . . . Highest Loss Streak 2 | . 2 . . . To Critical Strikes . | . . . . . Average Slot Usage (%) 99 | . 98 100 100 100 Engine 14 | . 14 14 14 14 Treads 20 | . 11 28 28 28 Leg 2 | . 6 . . . Wheel 3 | . 9 . . . Device 12 | . 10 13 14 14 Processor 14 | . 14 14 14 14 Energy Gun 13 | . 12 14 14 10 Ballistic Gun 13 | . 15 13 14 10 Naked Turns . | . . . . . Heaviest Build 48 | 7 48 15 15 15 Greatest Support 40 | 20 40 40 40 40 Greatest Overweight (x) 2 | . 2 . . . Average Overweight (x) . | . . . . . Largest Inventory Capacity 20 | 5 20 5 5 5 Average Capacity 5 | 5 5 5 5 5 Most Carried 5 | 5 5 5 5 5 Average Carried 4 | 2 4 4 5 5 Final Capacity 5 | 5 5 5 5 5 Final Carried 5 | 4 5 5 5 5 Class Distribution -------------------- 72% | Scavenger-Mutant 27% | Mutant Dominant Class ---------------- Mutant | -10/Materials Scavenger-Mutant | -10/Mines Scavenger-Mutant | -10/Exiles Scavenger-Mutant | -9/Mines Resources | -11 -10 -10 -10 -9 ----------- Run | Yrd Mat Min Exi Min Matter Collected 842 | 259 422 161 . . Remotely . | . . . . . Salvage Created 621 | 50 452 86 . 33 Parts 39 | 4 33 2 . . Haulers Intercepted . | . . . . . Recyclers Shooed . | . . . . . Parts Field Recycled . | . . . . . Retrieved Matter . | . . . . . Parts Self-Destructed . | . . . . . Prevented . | . . . . . Kills | -11 -10 -10 -10 -9 ------- Run | Yrd Mat Min Exi Min Combat Hostiles Destroyed 16 | 1 9 2 . 4 Guns 8 | 1 5 2 . . AOE 8 | . 4 . . 4 Classes Destroyed 7 | 1 5 . . 1 Worker 1 | . 1 . . . Recycler 1 | . 1 . . . Mechanic 1 | . 1 . . . Watcher 2 | . 2 . . . Swarmer 3 | . 3 . . . Grunt 9 | 1 6 2 . . Assembled 4 | . . . . 4 Best Kill Streak 5 | 1 5 1 . 4 Combat Bots Only 4 | 1 3 1 . 4 Max Kills in Single Turn 5 | 1 5 1 . 4 Gunslinging . | . . . . . Exploded 4 | . 3 . . 4 Melee . | . . . . . Uniques/NPCs Destroyed . | . . . . . Combat | -11 -10 -10 -10 -9 -------- Run | Yrd Mat Min Exi Min Hostile Shots Fired 104 | 3 53 43 . 5 Missed 21 | 1 9 10 . 1 Damage Taken 1052 | 21 610 331 . 90 Core 262 | 11 191 36 . 24 Absorbed by Shields . | . . . . . Core Remaining (%) 95 | 95 . . . . Volleys Fired 59 | 3 27 23 5 1 Largest 2 | 2 2 2 2 2 Hottest 108 | 60 60 108 108 60 Shots Fired 106 | 6 54 34 10 2 Gun 102 | 6 52 34 10 . Cannon . | . . . . . Launcher 4 | . 2 . . 2 Special . | . . . . . Kinetic 70 | 3 39 23 5 . Thermal 16 | . . 11 5 . Explosive 4 | . 2 . . 2 Electromagnetic 16 | 3 13 . . . Robot Hit Streak 6 | 6 5 4 . . Robot Miss Streak 4 | . 4 4 . . Penetration Max . | . . . . . Secondary Targets . | . . . . . Shots Hit Robots 50 | 6 29 15 . . Core Hits 35 | 2 23 4 . 6 Critical Kills . | . . . . . Critical Parts Destroyed . | . . . . . Critical Strikes . | . . . . . Melee Attacks . | . . . . . Impact . | . . . . . Slashing . | . . . . . Piercing . | . . . . . Sneak Attacks . | . . . . . Combat Hostiles . | . . . . . Follow-up Attacks . | . . . . . Damage Inflicted 1276 | 77 773 306 . 120 Guns 828 | 77 445 306 . . Cannons . | . . . . . Explosions 448 | . 328 . . 120 Melee . | . . . . . Ramming . | . . . . . Kinetic 540 | 36 268 236 . . Thermal 91 | . 21 70 . . Explosive 427 | . 307 . . 120 Electromagnetic 218 | 41 177 . . . Impact . | . . . . . Slashing . | . . . . . Piercing . | . . . . . Highest Corruption . | . . . . . Average Corruption . | . . . . . Corruption Purged . | . . . . . Corruption Blocked . | . . . . . Overload Shots . | . . . . . Overflow Damage 4 | . . . . 4 Projectiles . | . . . . . Explosions 4 | . . . . 4 Melee . | . . . . . Knockbacks . | . . . . . Impact . | . . . . . Kinetic . | . . . . . Secondary . | . . . . . Self-Inflicted Damage 50 | . 13 . . 37 Shots 3 | . 1 . . 2 Rammed . | . . . . . Targets Rammed . | . . . . . Kicked . | . . . . . Crushed . | . . . . . Highest Temperature 354 | 12 54 354 240 . Average Temperature 95 | 9 24 144 123 . Received Heat Transfer 593 | 12 294 267 . 20 Effects 1 | . . 1 . . Shutdowns 1 | . . 1 . . Siege Activations . | . . . . . Robots Corrupted . | . . . . . Combat Hostiles . | . . . . . Parts Fried . | . . . . . Impact Corruptions . | . . . . . Robots Melted . | . . . . . Combat Hostiles . | . . . . . Parts Melted . | . . . . . Heat Transferred 198 | . 50 148 . . Parts Sabotaged . | . . . . . Parts Stolen . | . . . . . Parts Stripped . | . . . . . Power Chain Reactions 1 | . 1 . . . Alert | -11 -10 -10 -10 -9 ------- Run | Yrd Mat Min Exi Min Peak Influence 293 | 20 293 56 . 7 Initial 13 | . 13 . . . Average 60 | 2 121 17 . . Maximum Alert Level 1 | . 1 . . . Low Security (%) 95 | 100 89 100 . 100 Level 1 4 | . 10 . . . Level 2 . | . . . . . Level 3 . | . . . . . Level 4 . | . . . . . Level 5 . | . . . . . High Security . | . . . . . Max Security . | . . . . . Squads Dispatched 2 | . 1 1 . . Investigation . | . . . . . Extermination . | . . . . . Reinforcement 1 | . 1 . . . Assault 1 | . . 1 . . Garrison . | . . . . . Intercept . | . . . . . Searches Triggered . | . . . . . Construction Impeded . | . . . . . Haulers Reinforced . | . . . . . Active Scanning Responses . | . . . . . Cargo Convoy Interrupts . | . . . . . Stealth | -11 -10 -10 -10 -9 --------- Run | Yrd Mat Min Exi Min Distress Signals . | . . . . . Communications Jammed . | . . . . . Distress Signals . | . . . . . Times Spotted 27 | 1 12 6 . 8 Peak Tracking Total 8 | 1 3 2 . 8 Tactical Retreats 3 | . . 2 . 1 Traps | -11 -10 -10 -10 -9 ------- Run | Yrd Mat Min Exi Min Traps Triggered 1 | . 1 . . . Indirectly . | . . . . . Trap Hack Attempts . | . . . . . Triggered . | . . . . . Disarmed . | . . . . . Reprogrammed . | . . . . . Reused . | . . . . . Traps Extracted . | . . . . . Installed . | . . . . . Triggered . | . . . . . Machines | -11 -10 -10 -10 -9 ---------- Run | Yrd Mat Min Exi Min Machines Disabled 3 | . 3 . . . Max in Single Turn 2 | . 2 . . . Machines Repaired . | . . . . . Machines Dismantled . | . . . . . Machines Sabotaged . | . . . . . Overloaded Fab Kills . | . . . . . Hacking | -11 -10 -10 -10 -9 --------- Run | Yrd Mat Min Exi Min Machines Accessed 2 | . 2 . . . Terminals . | . . . . . Fabricators . | . . . . . Repair Stations 1 | . 1 . . . Recycling Units 1 | . 1 . . . Scanalyzers . | . . . . . Garrison Access . | . . . . . Total Hacks 3 | . 3 . . . Successful 2 | . 2 . . . Failed 1 | . 1 . . . Catastrophic . | . . . . . Database Lockouts . | . . . . . Manual . | . . . . . Terminals . | . . . . . Fabricators . | . . . . . Repair Stations 2 | . 2 . . . Recycling Units 1 | . 1 . . . Scanalyzers . | . . . . . Garrison Access . | . . . . . Terminal Hacks . | . . . . . Fabricator Hacks . | . . . . . Repair Station Hacks 1 | . 1 . . . Scan Component 1 | . 1 . . . Recycling Unit Hacks 1 | . 1 . . . Report Inventory 1 | . 1 . . . Scanalyzer . | . . . . . Garrison Access Hacks . | . . . . . Unauthorized Hacks . | . . . . . Terminals . | . . . . . Fabricators . | . . . . . Repair Stations . | . . . . . Recycling Units . | . . . . . Scanalyzers . | . . . . . Garrison Access . | . . . . . Data Cores Recovered . | . . . . . Used . | . . . . . Hacking Detections 1 | . 1 . . . Full Trace Events . | . . . . . Feedback Events . | . . . . . Feedback Blocked . | . . . . . Robot Schematics Acquired . | . . . . . Robots Built . | . . . . . Authchips . | . . . . . Time . | . . . . . Total Robot Build Rating . | . . . . . Part Schematics Acquired . | . . . . . Parts Built . | . . . . . Authchips . | . . . . . Time . | . . . . . Total Part Build Rating . | . . . . . Parts Repaired . | . . . . . Time . | . . . . . Parts Recycled . | . . . . . Recycled Matter . | . . . . . Retrieved Matter . | . . . . . Retrieved Components . | . . . . . Parts Scanalyzed . | . . . . . Part Schematics Acquired . | . . . . . Parts Damaged . | . . . . . Bothacking | -11 -10 -10 -10 -9 ------------ Run | Yrd Mat Min Exi Min Used RIF Installer . | . . . . . Robots Hacked . | . . . . . Non-combat . | . . . . . Combat . | . . . . . Robot Hacks Applied . | . . . . . Relay Couplers Released . | . . . . . Fabnet Peak Effective % . | . . . . . Robots Rewired . | . . . . . Allies Hacked . | . . . . . Hacks Repelled . | . . . . . Allies | -11 -10 -10 -10 -9 -------- Run | Yrd Mat Min Exi Min Total Allies 4 | . . 1 . 3 Largest Group 3 | . . 1 . 3 Highest-Rated Group 40 | . . 31 . 40 Highest-Rated Ally 31 | . . 31 . 16 Total Orders . | . . . . . Ally Attacks 28 | . . 17 . 11 Total Damage 302 | . . 252 . 50 Kills 1 | . . 1 . . Allies Corrupted . | . . . . . Allies Melted . | . . . . . Intel | -11 -10 -10 -10 -9 ------- Run | Yrd Mat Min Exi Min Robot Analysis Total . | . . . . . Derelict Logs Recovered . | . . . . . Drone Launches . | . . . . . Drone Recoveries . | . . . . . Exploration | -11 -10 -10 -10 -9 ------------- Run | Yrd Mat Min Exi Min Turns Passed 2042 | 84 837 1020 63 38 Spaces Moved 1296 | 83 574 590 31 18 Core 18 | 18 . . . . Treads 849 | . 210 590 31 18 Legs 155 | . 155 . . . Wheels 274 | 65 209 . . . Hover . | . . . . . Flight . | . . . . . Fastest Speed 50 | 50 80 160 160 160 Average Speed 136 | 73 120 160 160 160 Slowest Speed 190 | 80 190 160 160 160 Overloaded Moves . | . . . . . Propulsion Burnouts . | . . . . . Robots Hopped . | . . . . . Cave-ins Triggered . | . . . . . Exploration Rate (%) 34 | 5 83 70 8 6 Regions Visited 4 Branch Regions 3 Pre-discovered Areas . | . . . . . Known Exits Taken . | . . . . . Unknown Exits Taken 4 | 1 1 1 1 . Scrap Searched 2 | . . 2 . . Spaces Dug . | . . . . . Terrain Destroyed 37 | . 21 5 2 9 Melee . | . . . . . Projectile 7 | . . 5 2 . AOE 30 | . 21 . . 9 Terrain Rammed . | . . . . . Walls Destroyed . | . . . . . Machines Disabled . | . . . . . Actions | -11 -10 -10 -10 -9 --------- Run | Yrd Mat Min Exi Min Total 1460 | 99 669 634 35 23 Wait . | . . . . . Move 1292 | 82 573 589 30 18 Hop . | . . . . . Pick Up 44 | 9 26 9 . . Fast Attach 1 | . 1 . . . Attach 12 | 5 7 . . . Detach . | . . . . . Swap 23 | . 14 5 . 4 Drop 29 | . 21 8 . . Fire 59 | 3 27 23 5 1 Melee . | . . . . . Ram . | . . . . . Kick . | . . . . . Crush . | . . . . . Escape Stasis . | . . . . . Rewire . | . . . . . Trap . | . . . . . Miscellaneous . | . . . . . Route ------- -11/Scrapyard -10/Materials (discovered 2 exits: [*Mat] / [*Min]) -10/Mines (discovered 3 exits: [*Mat x2] / [*Exi]) -10/Exiles -9/Mines History --------- Turn | Location | Event 2 | -11/Scrapyard | Met Revision 17 61 | -11/Scrapyard | Discovered new exit (range 8) 85 | -11/Scrapyard | Entered Materials 318 | -10/Materials | Build established: Mutant 332 | -10/Materials | Core integrity fell below 50% 539 | -10/Materials | Discovered new exit (range 7) 659 | -10/Materials | Build established: Scavenger-Mutant 676 | -10/Materials | Discovered new exit (range 15) 910 | -10/Materials | Core integrity fell below 20% 922 | -10/Materials | Entered Mines 945 | -10/Mines | Met a Derelict bent on vengeance 1072 | -10/Mines | Deemed a non-threat by the Exiles lab entrance 1072 | -10/Mines | Discovered new exit (range 5) 1144 | -10/Mines | Joined a pair of Derelicts in attacking an 0b10 outpost 1225 | -10/Mines | A weapon hastily lodged in a ceiling crevice suddenly fell to the ground 1227 | -10/Mines | Discovered new exit (range 9) 1564 | -10/Mines | Met a Derelict testing a Signal Generator 1578 | -10/Mines | Discovered new exit (range 7) 1942 | -10/Mines | Entered Exiles 1985 | -10/Exiles | Discovered new exit (range 14) 2005 | -10/Exiles | Entered Mines 2006 | -9/Mines | Assembled infested the area 2011 | -9/Mines | Assisted by a Guerilla fighting off Assembled 2026 | -9/Mines | Assisted by bots powering up and referring to "LRC-V3" 2043 | -9/Mines | Destroyed by as-58528 with Assembled Heavy Rifle Last Messages --------------- do not fire together with ranged weapons in the same volley. VI-331(h) knocked back. HV Slug penetrates Wall. Trooper 2a: "Hello LRC-V3. What is your command?" Mercenary 2a: "Hello LRC-V3. What is your command?" Trooper 2b: "Hello LRC-V3. What is your command?" You have a new controllable ally. Review and give out orders from the Allies menu (F5). VI-331(h) destroyed. Trooper 2a destroyed. Mercenary 2a destroyed. as-27176 destroyed. as-85875 destroyed. as-39500 destroyed. The unstable cave ceiling collapses. [Achievement: First Step to Greatness] Map ----- +----------------------------------------------------+ | | | | | | | | | | | | | | | | | | | | | | | | | | | | | | | | | | | | | ????????????????????????????#####????????????? | | ??????????????????????????### % #????????????? | | ???????????????????????### # !%###??????????? | | ???????????????????????# !%=######?????? | | ??????????????????????## a % ## ##????? | | ??????????????????????# a % ! #????? | | ??????????????????????# ## #????? | | ??????????????????????## @ # #### #????? | | ???????????????????????## ### ##??## ##????? | | ????????????????????????# #?##!#????####?????? | | ????????????????????????# #??#%#?????????????? | | ????????????????????????#a#??# #?????????????? | | ????????????????????????# ?? #?????????????? | | ????????????????????????###??# #?????????????? | | ?????????????????????????????# #?????????????? | | ?????????????????????????????# #?????????????? | | ?????????????????????????????# #?????????????? | | ?????????????????????????????? #?????????????? | | ?????????????????????????????? ??????????????? | | ?????????????????????????????? ??????????????? | | ?????????????????????????????? ??????????????? | | ?????????????????????????????? ??????????????? | | ?????????????????????????????? ??????????????? | | ?????????????????????????????? ??????????????? | | ?????????????????????????????????????????????? | | ?????????????????????????????????????????????? | | ?????????????????????????????????????????????? | | ?????????????????????????????????????????????? | | ?????????????????????????????????????????????? | | ?????????????????????????????????????????????? | | ?????????????????????????????????????????????? | | ?????????????????????????????????????????????? | +----------------------------------------------------+ Best States ------------- Heat Dissipation 39 Energy Generation 10 Energy Capacity 250 Matter Stores 350 Matter Capacity 350 Sight Range 16 Terrain Scan Density 10 Evasion (%) 55 Targeting Accuracy 5 Recoil Reduction 2 Item Schematics ----------------- None Robot Schematics ------------------ None Fabricated ------------ Nothing Alien Tech Used ----------------- None Achievements -------------- First Step to Greatness Tourist Uninvited Guest Challenges ------------ None Game ------ Seed HeatExplosiveCompactor Manual? 0 Play Time 01:00:01 Cumulative 0.9 hours Start 2024.05.14 @ 16:37:13 End 2024.05.14 @ 17:42:49 Sessions 1 Manual Loads 0 Difficulty Rogue Special Mode None Game No. 1 Rogue 1 Adventurer 0 Explorer 0 Win Type - Total 0 Types 0/0/0/0/0/0/0/0/0 Lore% 0 Gallery% 2 Achievement% 1 Wizard Run 0 Options --------- Layout 1 ASCII 0 Keyboard 0 Movement Mouse Keybinds 0 Fullscreen 2 Font 32/SmallcapsGlow Map View 50x35 Zoom Use 6% Tactical HUD 0 Map Filters NONE Filters NONE Steam 1 RUN: add997ff-7a99-4f55-9105-fc774faa183d